[Event "EYCC 2017"]
[Site "Mamaia"]
[Date "2017.09.06"]
[Round "2"]
[White "Sucikova, Svetlana"]
[Black "Bulgurcu, Feyza Nur"]
[Result "1-0"]
[ECO "A20"]
[WhiteElo "2055"]
[BlackElo "1494"]
[Annotator "NA"]
[PlyCount "65"]
[EventDate "2017.??.??"]
[EventType "swiss"]
[EventCountry "ROU"]
[SourceTitle "playchess.com"]
[Source "ChessBase"]
[SourceQuality "1"]
[TimeControl "40/5400+30:1800+30"]

1. c4 {[%emt 0:00:00]} e5 {[%emt 0:00:05]} 2. g3 {[%emt 0:00:22]} Nf6 {[%emt 0:00:23]} 3. Bg2 {[%emt 0:01:21]} c6 {[%emt 0:01:57]} 4. d4 {[%emt 0:01:34]} e4 {[%emt 0:03:03]} 5. Nc3 {[%emt 0:02:41]} d5 {[%emt 0:00:35]} 6. cxd5 {[%emt 0:01:03]} cxd5 {[%emt 0:00:35]} 7. Bg5 {[%emt 0:01:58]} Bb4 {[%emt 0:03:03]} 8. Qb3 {[%emt 0:05:53]} Nc6 {[%emt 0:05:14]} 9. e3 {[%emt 0:00:54]} Be6 {[%emt 0:01:15]} 10. Nge2 {[%emt 0:02:19]} h6 {[%emt 0:04:36]} 11. Bxf6 {[%emt 0:01:56]} gxf6 {[%emt 0:09:09]} 12. a3 {[%emt 0:01:49]} Bxc3+ {[%emt 0:00:23]} 13. Qxc3 {[%emt 0:02:49]} Rc8 {[%emt 0:03:36]} 14. O-O {[%emt 0:04:27]} Qb6 {[%emt 0:06:05]} 15. b4 {[%emt 0:06:42]} a5 {[%emt 0:03:34]} 16. Qc5 Qd8 {[%emt 0:07:47]} 17. Rfc1 {[%emt 0:11:30]} axb4 {[%emt 0:02:31]} 18. axb4 {[%emt 0:00:35]} Qe7 {[%emt 0:02:51]} 19. Nf4 {[%emt 0:04:58]} O-O {[%emt 0:09:49]} 20. Nxd5 {[%emt 0:02:03]} Bxd5 {[%emt 0:05:50]} 21. Qxd5 {[%emt 0:00:09]} Nxb4 {[%emt 0:01:43]} 22. Qxe4 {[%emt 0:00:52]} Qxe4 {[%emt 0:02:26]} 23. Bxe4 {[%emt 0:00:08]} Rxc1+ {[%emt 0:01:35]} 24. Rxc1 {[%emt 0:03:53]} Na2 {[%emt 0:00:45]} 25. Rc2 {[%emt 0:03:21]} Re8 {[%emt 0:02:03]} 26. Bxb7 {[%emt 0:00:43]} Nb4 {[%emt 0:00:28]} 27. Rb2 {[%emt 0:04:56]} Nd3 {[%emt 0:00:17]} 28. Rb1 {[%emt 0:00:11]} Rb8 {[%emt 0:00:46]} 29. Kf1 {[%emt 0:00:07]} Kf8 {[%emt 0:03:42]} 30. Ke2 {[%emt 0:00:30]} Nxf2 {[%emt 0:01:38]} 31. Kxf2 {[%emt 0:00:08]} f5 {[%emt 0:00:35]} 32. Be4 {[%emt 0:00:13]} Rxb1 {[%emt 0:02:12]} 33. Bxb1 {[%emt 0:01:27]} 1-0

[Event "EYCC 2017"]
[Site "Mamaia"]
[Date "2017.09.06"]
[Round "2"]
[White "Ilyuchyk, Yana"]
[Black "Garcia Martin, Marta"]
[Result "0-1"]
[ECO "C45"]
[WhiteElo "2036"]
[BlackElo "2360"]
[Annotator "NA"]
[PlyCount "124"]
[EventDate "2017.??.??"]
[EventType "swiss"]
[EventCountry "ROU"]
[SourceTitle "playchess.com"]
[Source "ChessBase"]
[SourceQuality "1"]
[TimeControl "40/5400+30:1800+30"]

1. e4 {[%emt 0:00:00]} e5 {[%emt 0:00:09]} 2. Nf3 {[%emt 0:00:00]} Nc6 {[%emt 0:00:05]} 3. d4 {[%emt 0:00:00]} exd4 {[%emt 0:00:06]} 4. Nxd4 {[%emt 0:00:00]} Nf6 {[%emt 0:00:11]} 5. Nxc6 {[%emt 0:00:00]} bxc6 {[%emt 0:00:06]} 6. e5 {[%emt 0:00:00]} Nd5 {[%emt 0:00:10]} 7. c4 {[%emt 0:00:01]} Nb6 {[%emt 0:01:13]} 8. Bd3 {[%emt 0:00:14]} Qh4 $16 {[%emt 0:13:32]} (8... g6 $11 {keeps the balance.}) 9. O-O {[%emt 0:17:52]} Bb7 {[%emt 0:23:54]} 10. Nc3 {[%emt 0:13:32]} Be7 {[%emt 0:06:27]} 11. Ne4 {[%emt 0:10:55]} c5 {[%emt 0:05:23]} 12. Re1 {[%emt 0:07:19]} O-O-O {[%emt 0:10:56]} 13. Ng3 {[%emt 0:00:58]} g6 {[%emt 0:02:16]} 14. Be4 {[%emt 0:02:58]} Ba6 {[%emt 0:03:17]} 15. b3 {[%emt 0:13:51]} d6 {[%emt 0:01:04]} 16. exd6 {[%emt 0:01:46]} Bf6 {[%emt 0:10:19]} 17. Bf5+ {[%emt 0:13:31]} gxf5 {[%emt 0:06:13]} 18. Nxf5 {[%emt 0:00:04]} Rxd6 {[%emt 0:00:07]} 19. Nxd6+ {[%emt 0:01:41]} cxd6 {[%emt 0:00:04]} 20. Qxd6 {[%emt 0:00:05]} Rd8 {[%emt 0:10:38]} 21. Qc6+ {[%emt 0:01:16]} Kb8 {[%emt 0:00:13]} 22. g3 {[%emt 0:00:12]} Bb7 {[%emt 0:00:43]} 23. gxh4 {[%emt 0:12:07]} Bxc6 {[%emt 0:00:04]} 24. Bf4+ {[%emt 0:00:02]} Kb7 {[%emt 0:00:19]} 25. Rad1 {[%emt 0:00:50]} Rg8+ {[%emt 0:03:14]} 26. Bg3 {[%emt 0:00:05]} Nc8 {[%emt 0:00:23]} 27. Kf1 {[%emt 0:00:49]} Bc3 {[%emt 0:01:07]} 28. Re3 {[%emt 0:00:18]} Bd4 {[%emt 0:00:08]} 29. Red3 {[%emt 0:00:27]} Rg4 {[%emt 0:02:01]} 30. f3 {[%emt 0:00:20]} Rg6 {[%emt 0:00:28]} 31. Kg2 {[%emt 0:03:40]} Re6 {[%emt 0:00:35]} 32. R1d2 {[%emt 0:00:31]} Ne7 {[%emt 0:00:24]} 33. Bf2 {[%emt 0:00:31]} Nf5 {[%emt 0:00:21]} 34. Bxd4 {[%emt 0:00:17]} cxd4 {[%emt 0:00:35]} 35. Kf2 {[%emt 0:00:21]} Rh6 {[%emt 0:00:31]} 36. Rxd4 {[%emt 0:00:44]} Nxd4 {[%emt 0:00:08]} 37. Rxd4 {[%emt 0:00:02]} Rf6 {[%emt 0:00:22]} 38. Rd3 {[%emt 0:00:24]} Kb6 {[%emt 0:00:52]} 39. a3 {[%emt 0:01:07]} Kc5 {[%emt 0:00:26]} 40. Kg3 {[%emt 0:00:00]} Rg6+ {[%emt 0:00:44]} 41. Kf4 {[%emt 0:05:29]} Rg2 {[%emt 0:05:29]} 42. Re3 {[%emt 0:04:44]} Rb2 {[%emt 0:13:24]} 43. Kg5 {[%emt 0:09:13]} Kd4 {[%emt 0:02:34]} 44. Re7 {[%emt 0:00:12]} Rxb3 {[%emt 0:00:51]} 45. Rc7 {[%emt 0:05:53]} Bxf3 {[%emt 0:04:39]} 46. Rxa7 {[%emt 0:00:14]} Rb7 {[%emt 0:00:10]} 47. Ra6 {[%emt 0:01:45]} Be4 {[%emt 0:01:43]} 48. Rf6 {[%emt 0:01:09]} Kxc4 {[%emt 0:01:43]} 49. h5 {[%emt 0:02:34]} Kd4 {[%emt 0:01:25]} 50. a4 {[%emt 0:02:13]} Ke5 {[%emt 0:00:52]} 51. a5 {[%emt 0:00:11]} Ra7 {[%emt 0:01:36]} 52. h4 {[%emt 0:01:45]} Rxa5 {[%emt 0:01:08]} 53. Rxf7 {[%emt 0:00:05]} Ke6+ {[%emt 0:00:06]} 54. Kh6 {[%emt 0:00:05]} Rxh5+ {[%emt 0:00:06]} 55. Kg7 {[%emt 0:00:25]} Rxh4 {[%emt 0:00:19]} 56. Ra7 {[%emt 0:00:38]} Ke5 {[%emt 0:01:25]} 57. Ra1 {[%emt 0:00:42]} Kf4 {[%emt 0:00:58]} 58. Rf1+ {[%emt 0:00:06]} Bf3 {[%emt 0:00:18]} 59. Ra1 {[%emt 0:00:11]} h5 {[%emt 0:00:22]} 60. Kh6 {[%emt 0:00:40]} Rg4 {[%emt 0:00:51]} 61. Rf1 {[%emt 0:02:23]} h4 {[%emt 0:00:26]} 62. Ra1 {[%emt 0:00:56]} h3 {[%emt 0:00:18]} 0-1

[Event "EYCC 2017"]
[Site "Mamaia"]
[Date "2017.09.06"]
[Round "2"]
[White "Hercog, Nusa"]
[Black "Hajiyeva, Laman"]
[Result "0-1"]
[ECO "D43"]
[WhiteElo "2034"]
[BlackElo "1818"]
[Annotator "NA"]
[PlyCount "76"]
[EventDate "2017.??.??"]
[EventType "swiss"]
[EventCountry "ROU"]
[SourceTitle "playchess.com"]
[Source "ChessBase"]
[SourceQuality "1"]
[TimeControl "40/5400+30:1800+30"]

1. d4 {[%emt 0:00:00]} d5 {[%emt 0:00:05]} 2. c4 {[%emt 0:00:00]} c6 {[%emt 0:00:02]} 3. Nf3 {[%emt 0:00:16]} Nf6 {[%emt 0:00:03]} 4. Nc3 {[%emt 0:00:40]} e6 {[%emt 0:00:04]} 5. cxd5 {[%emt 0:01:47]} cxd5 {[%emt 0:00:24]} 6. Bg5 {[%emt 0:01:47]} Bd6 {[%emt 0:02:24]} 7. e3 {[%emt 0:02:11]} O-O {[%emt 0:02:56]} 8. Bd3 {[%emt 0:01:47]} Nbd7 {[%emt 0:02:31]} 9. Qc2 {[%emt 0:01:41]} h6 {[%emt 0:01:10]} 10. Bh4 {[%emt 0:00:32]} a6 {[%emt 0:01:48]} 11. a4 {[%emt 0:09:51]} b6 {[%emt 0:06:34]} 12. O-O {[%emt 0:04:43]} Bb7 {[%emt 0:00:12]} 13. Rac1 {[%emt 0:03:07]} Rc8 {[%emt 0:03:12]} 14. Qe2 {[%emt 0:01:24]} Qe7 {[%emt 0:07:25]} 15. Bxa6 {[%emt 0:12:06]} Bxa6 {[%emt 0:02:52]} 16. Qxa6 {[%emt 0:00:06]} Rc4 {[%emt 0:09:28]} 17. Qb5 {[%emt 0:10:33]} g5 {[%emt 0:03:09]} 18. Bg3 {[%emt 0:01:05]} Rfc8 {[%emt 0:01:50]} 19. Qb3 {[%emt 0:06:16]} Bxg3 {[%emt 0:00:37]} 20. hxg3 {[%emt 0:00:23]} Ne4 {[%emt 0:00:30]} 21. Rfd1 {[%emt 0:04:53]} g4 {[%emt 0:16:51]} 22. Nd2 {[%emt 0:07:35]} Nxd2 {[%emt 0:00:18]} 23. Rxd2 {[%emt 0:00:06]} h5 {[%emt 0:05:44]} 24. Re1 {[%emt 0:07:59]} f5 {[%emt 0:01:30]} 25. Ne2 {[%emt 0:07:12]} h4 {[%emt 0:01:01]} 26. Nf4 {[%emt 0:04:55]} hxg3 {[%emt 0:01:35]} 27. fxg3 {[%emt 0:00:13]} Nf6 {[%emt 0:01:54]} 28. Qxb6 {[%emt 0:01:35]} Ne4 {[%emt 0:00:19]} 29. Rdd1 {[%emt 0:00:34]} R4c6 {[%emt 0:00:24]} 30. Qb3 {[%emt 0:01:53]} Nxg3 {[%emt 0:01:21]} 31. Ne2 {[%emt 0:02:40]} Ne4 {[%emt 0:00:49]} 32. Nc3 {[%emt 0:02:17]} g3 {[%emt 0:02:01]} 33. Kf1 {[%emt 0:02:04]} Qh4 {[%emt 0:01:47]} 34. Ke2 {[%emt 0:01:01]} Nxc3+ {[%emt 0:01:25]} 35. bxc3 {[%emt 0:00:05]} Rxc3 {[%emt 0:00:05]} 36. Qb6 {[%emt 0:00:37]} Qh5+ {[%emt 0:00:17]} 37. Kf1 {[%emt 0:00:28]} Qh1+ {[%emt 0:00:09]} 38. Ke2 {[%emt 0:00:01]} Qxg2# {[%emt 0:00:05]} 0-1

[Event "EYCC 2017"]
[Site "Mamaia"]
[Date "2017.09.06"]
[Round "2"]
[White "Rogozenco, Teodora"]
[Black "Kanakova, Natalie"]
[Result "1-0"]
[ECO "E34"]
[WhiteElo "2024"]
[BlackElo "2186"]
[Annotator "NA"]
[PlyCount "83"]
[EventDate "2017.??.??"]
[EventType "swiss"]
[EventCountry "ROU"]
[SourceTitle "playchess.com"]
[Source "ChessBase"]
[SourceQuality "1"]
[TimeControl "40/5400+30:1800+30"]

1. d4 {[%emt 0:00:00]} Nf6 {[%emt 0:00:06]} 2. c4 {[%emt 0:00:00]} e6 {[%emt 0:00:04]} 3. Nc3 {[%emt 0:00:00]} Bb4 {[%emt 0:00:06]} 4. Qc2 {[%emt 0:00:00]} d5 {[%emt 0:00:20]} 5. cxd5 {[%emt 0:01:01]} Qxd5 {[%emt 0:00:21]} 6. a3 {[%emt 0:01:20]} Bxc3+ {[%emt 0:01:48]} 7. bxc3 {[%emt 0:00:06]} c5 {[%emt 0:01:33]} 8. e3 {[%emt 0:00:10]} O-O {[%emt 0:06:32]} 9. Nf3 {[%emt 0:00:22]} b6 {[%emt 0:02:56]} 10. c4 {[%emt 0:00:47]} Qc6 {[%emt 0:03:59]} 11. Bd3 {[%emt 0:14:01]} cxd4 {[%emt 0:17:44]} 12. exd4 {[%emt 0:00:08]} Bb7 {[%emt 0:02:40]} 13. O-O {[%emt 0:00:31]} Qc7 {[%emt 0:01:25]} 14. Qe2 {[%emt 0:09:07]} Nc6 {[%emt 0:07:37]} 15. Bg5 {[%emt 0:04:55]} Qe7 {[%emt 0:08:08]} 16. Rfe1 {[%emt 0:00:49]} Rfe8 {[%emt 0:05:12]} 17. Rad1 {[%emt 0:06:57]} Rad8 {[%emt 0:04:16]} 18. Bb1 {[%emt 0:01:10]} h6 {[%emt 0:02:33]} 19. Bh4 {[%emt 0:04:34]} g5 {[%emt 0:15:46]} 20. Bg3 {[%emt 0:00:49]} g4 {[%emt 0:00:25]} 21. Bh4 {[%emt 0:00:29]} gxf3 {[%emt 0:03:27]} 22. Qxf3 {[%emt 0:00:34]} Nxd4 {[%emt 0:00:30]} 23. Qxf6 {[%emt 0:01:17]} Ne2+ {[%emt 0:05:29]} 24. Kf1 {[%emt 0:00:22]} Qxf6 {[%emt 0:00:04]} 25. Bxf6 {[%emt 0:00:14]} Rxd1 {[%emt 0:00:05]} 26. Rxd1 {[%emt 0:00:12]} Nf4 {[%emt 0:00:06]} 27. f3 {[%emt 0:10:23]} Ba6 {[%emt 0:01:02]} 28. Rd4 {[%emt 0:13:14]} Nd5 {[%emt 0:03:10]} 29. Be5 {[%emt 0:08:45]} Ne3+ {[%emt 0:04:59]} 30. Kf2 {[%emt 0:01:10]} Nxc4 {[%emt 0:00:33]} 31. Bf6 {[%emt 0:05:54]} Rc8 {[%emt 0:01:03]} 32. Bd3 {[%emt 0:04:03]} b5 {[%emt 0:01:00]} 33. Rd7 {[%emt 0:00:05]} Rb8 {[%emt 0:01:09]} 34. Rxa7 {[%emt 0:05:01]} Bc8 {[%emt 0:00:04]} 35. a4 {[%emt 0:00:53]} Nb6 {[%emt 0:01:13]} 36. axb5 {[%emt 0:03:11]} Nd7 {[%emt 0:00:25]} 37. Bd4 {[%emt 0:02:35]} Kf8 {[%emt 0:00:05]} 38. Be4 {[%emt 0:02:58]} e5 {[%emt 0:00:51]} 39. Bc3 {[%emt 0:00:36]} Ke8 {[%emt 0:00:38]} 40. Bc6 {[%emt 0:00:00]} Kd8 {[%emt 0:00:28]} 41. Ba5+ {[%emt 0:04:39]} Ke7 {[%emt 0:09:00]} 42. Bc7 {[%emt 0:01:03]} 1-0

[Event "EYCC 2017"]
[Site "Mamaia"]
[Date "2017.09.06"]
[Round "2"]
[White "Miroshnik, Ekaterina"]
[Black "Kvendseth, Thyra"]
[Result "1/2-1/2"]
[ECO "E68"]
[WhiteElo "2006"]
[BlackElo "1810"]
[Annotator "NA"]
[PlyCount "198"]
[EventDate "2017.??.??"]
[EventType "swiss"]
[EventCountry "ROU"]
[SourceTitle "playchess.com"]
[Source "ChessBase"]
[SourceQuality "1"]
[TimeControl "40/5400+30:1800+30"]

1. d4 {[%emt 0:00:00]} Nf6 {[%emt 0:00:06]} 2. c4 {[%emt 0:00:00]} g6 {[%emt 0:00:06]} 3. Nf3 {[%emt 0:00:00]} Bg7 {[%emt 0:00:10]} 4. g3 {[%emt 0:00:00]} O-O {[%emt 0:00:09]} 5. Bg2 {[%emt 0:00:00]} d6 {[%emt 0:00:05]} 6. O-O {[%emt 0:00:00]} Nbd7 {[%emt 0:00:04]} 7. Nc3 {[%emt 0:00:29]} e5 {[%emt 0:00:13]} 8. e4 {[%emt 0:00:19]} Re8 {[%emt 0:00:06]} 9. Re1 {[%emt 0:01:00]} exd4 {[%emt 0:02:12]} 10. Nxd4 {[%emt 0:00:04]} c6 {[%emt 0:01:50]} 11. h3 {[%emt 0:01:39]} Nc5 {[%emt 0:02:09]} 12. b3 {[%emt 0:01:38]} Qc7 {[%emt 0:04:02]} 13. Bb2 {[%emt 0:05:08]} Bd7 {[%emt 0:05:40]} 14. Qd2 {[%emt 0:08:45]} Rad8 {[%emt 0:00:32]} 15. Rad1 {[%emt 0:00:38]} Bc8 {[%emt 0:00:25]} 16. Qc2 {[%emt 0:00:44]} a6 {[%emt 0:06:32]} 17. Kh2 {[%emt 0:02:32]} Re7 {[%emt 0:09:18]} 18. f4 {[%emt 0:16:15]} Rde8 {[%emt 0:02:50]} 19. b4 {[%emt 0:02:40]} Ne6 {[%emt 0:13:56]} 20. Nf3 {[%emt 0:18:27]} Nf8 {[%emt 0:07:00]} 21. Nd2 {[%emt 0:03:27]} Nh5 {[%emt 0:04:28]} 22. Na4 Nf6 23. c5 {[%emt 0:09:58]} dxc5 {[%emt 0:04:10]} 24. Be5 {[%emt 0:06:14]} Rxe5 {[%emt 0:11:55]} 25. fxe5 {[%emt 0:00:18]} Rxe5 {[%emt 0:00:23]} 26. Nxc5 {[%emt 0:01:10]} Rg5 {[%emt 0:05:49]} 27. e5 {[%emt 0:04:54]} Nh5 {[%emt 0:01:46]} 28. Nf3 {[%emt 0:08:22]} Rxg3 {[%emt 0:01:08]} 29. Ne4 {[%emt 0:03:23]} Bf5 {[%emt 0:01:10]} 30. Qd2 {[%emt 0:01:20]} Bxe4 {[%emt 0:01:43]} 31. Rxe4 {[%emt 0:00:06]} Ne6 {[%emt 0:00:58]} 32. Qe1 {[%emt 0:03:30]} Ng5 {[%emt 0:02:04]} 33. Re3 {[%emt 0:01:57]} Nxf3+ {[%emt 0:01:12]} 34. Bxf3 {[%emt 0:00:12]} Bxe5 {[%emt 0:02:28]} 35. Rxe5 {[%emt 0:00:14]} Rxf3 {[%emt 0:00:07]} 36. Kg1 {[%emt 0:01:53]} Rg3+ {[%emt 0:00:50]} 37. Kf1 {[%emt 0:00:41]} Rxh3 {[%emt 0:01:22]} 38. Kg1 {[%emt 0:00:28]} Qb6+ {[%emt 0:01:39]} 39. Rc5 {[%emt 0:00:04]} Rg3+ {[%emt 0:00:34]} 40. Kf1 {[%emt 0:00:00]} Qc7 {[%emt 0:01:59]} 41. Qe8+ {[%emt 0:07:47]} Kg7 {[%emt 0:00:08]} 42. Qe5+ {[%emt 0:00:15]} Qxe5 {[%emt 0:00:15]} 43. Rxe5 {[%emt 0:00:01]} Kf6 {[%emt 0:03:36]} 44. Re8 {[%emt 0:00:56]} Ra3 {[%emt 0:03:48]} 45. Rd2 {[%emt 0:00:32]} a5 {[%emt 0:01:36]} 46. Rf2+ {[%emt 0:01:16]} Kg7 {[%emt 0:00:33]} 47. bxa5 {[%emt 0:01:01]} Rxa5 {[%emt 0:04:14]} 48. Re7 {[%emt 0:00:10]} Ng3+ {[%emt 0:00:11]} 49. Kg2 {[%emt 0:00:58]} Nf5 {[%emt 0:01:15]} 50. Rxb7 {[%emt 0:00:12]} Ne3+ {[%emt 0:00:28]} 51. Kh1 {[%emt 0:03:53]} Nf5 {[%emt 0:02:07]} 52. Kg2 {[%emt 0:00:44]} h5 {[%emt 0:00:39]} 53. Rc7 {[%emt 0:01:18]} c5 {[%emt 0:00:22]} 54. Kh2 {[%emt 0:00:48]} Nd6 {[%emt 0:00:39]} 55. Rc2 {[%emt 0:03:41]} Ne4 {[%emt 0:00:45]} 56. Re2 {[%emt 0:02:44]} Ra4 {[%emt 0:02:42]} 57. Re7 {[%emt 0:00:19]} Nc3 {[%emt 0:00:17]} 58. Rf2 {[%emt 0:00:18]} Rxa2 {[%emt 0:00:50]} 59. Rexf7+ {[%emt 0:00:13]} Kg8 {[%emt 0:00:16]} 60. Rf8+ {[%emt 0:00:04]} Kg7 {[%emt 0:00:19]} 61. R8f7+ {[%emt 0:00:07]} Kh6 {[%emt 0:00:18]} 62. Rxa2 {[%emt 0:00:26]} Nxa2 {[%emt 0:00:06]} 63. Rc7 {[%emt 0:00:03]} Nc3 {[%emt 0:00:11]} 64. Rxc5 {[%emt 0:00:05]} Ne4 {[%emt 0:00:31]} 65. Ra5 {[%emt 0:00:06]} Nd6 {[%emt 0:00:25]} 66. Kh3 {[%emt 0:00:15]} Nf5 {[%emt 0:00:09]} 67. Rb5 {[%emt 0:00:25]} Ne7 {[%emt 0:03:10]} 68. Rb6 {[%emt 0:00:28]} Kg7 {[%emt 0:00:36]} 69. Kh4 {[%emt 0:00:15]} Kh6 {[%emt 0:00:29]} 70. Kh3 {[%emt 0:00:09]} Kg5 {[%emt 0:00:11]} 71. Rb5+ {[%emt 0:00:06]} Nf5 {[%emt 0:00:06]} 72. Ra5 {[%emt 0:00:05]} h4 {[%emt 0:02:46]} 73. Rb5 {[%emt 0:00:24]} Kf4 {[%emt 0:03:07]} 74. Rb4+ {[%emt 0:00:18]} Kf3 {[%emt 0:01:01]} 75. Rg4 {[%emt 0:01:46]} Ne7 {[%emt 0:02:38]} 76. Kxh4 {[%emt 0:00:21]} Ke3 {[%emt 0:03:40]} 77. Ra4 {[%emt 0:01:12]} Nc6 {[%emt 0:02:18]} 78. Kg5 {[%emt 0:00:39]} Ne7 {[%emt 0:00:38]} 79. Kf6 {[%emt 0:00:19]} Nf5 {[%emt 0:00:25]} 80. Kxg6 {[%emt 0:00:55]} Nd4 {[%emt 0:00:07]} 81. Kg5 {[%emt 0:00:13]} Ke4 {[%emt 0:00:13]} 82. Kg4 {[%emt 0:00:46]} Ke5 {[%emt 0:00:20]} 83. Ra5+ {[%emt 0:00:17]} Ke4 {[%emt 0:00:06]} 84. Ra8 {[%emt 0:00:04]} Nc6 {[%emt 0:00:15]} 85. Kg3 {[%emt 0:00:33]} Ne5 {[%emt 0:01:47]} 86. Ra4+ {[%emt 0:01:11]} Kd5 {[%emt 0:00:20]} 87. Kf4 {[%emt 0:00:15]} Nc6 {[%emt 0:00:16]} 88. Ke3 {[%emt 0:00:22]} Ke5 {[%emt 0:00:38]} 89. Rc4 {[%emt 0:00:19]} Kd5 {[%emt 0:00:09]} 90. Ra4 {[%emt 0:00:07]} Ke5 {[%emt 0:00:05]} 91. Rh4 {[%emt 0:00:05]} Kd5 {[%emt 0:03:50]} 92. Rh5+ {[%emt 0:00:16]} Kd6 {[%emt 0:01:12]} 93. Ke4 {[%emt 0:00:11]} Ne7 {[%emt 0:00:26]} 94. Rg5 {[%emt 0:00:43]} Ke6 {[%emt 0:01:05]} 95. Ra5 {[%emt 0:00:21]} Kd6 {[%emt 0:00:21]} 96. Re5 {[%emt 0:00:53]} Nc6 {[%emt 0:00:42]} 97. Rh5 {[%emt 0:01:18]} Ne7 {[%emt 0:00:20]} 98. Rh6+ {[%emt 0:00:49]} Kc5 {[%emt 0:00:10]} 99. Re6 {[%emt 0:00:04]} Nc6 {[%emt 0:00:20]} 1/2-1/2

[Event "EYCC 2017"]
[Site "Mamaia"]
[Date "2017.09.06"]
[Round "2"]
[White "Pingin, Artem"]
[Black "Filip, Andrei"]
[Result "0-1"]
[ECO "C11"]
[WhiteElo "1996"]
[BlackElo "1612"]
[Annotator "NA"]
[PlyCount "40"]
[EventDate "2017.??.??"]
[EventType "swiss"]
[EventCountry "ROU"]
[SourceTitle "playchess.com"]
[Source "ChessBase"]
[SourceQuality "1"]
[TimeControl "40/5400+30:1800+30"]

1. e4 e6 2. d4 d5 3. Nc3 Nf6 4. e5 Nfd7 5. Qg4 c5 6. Nf3 Nc6 7. Bf4 a6 8. O-O-O b5 9. dxc5 Nxc5 10. Be3 b4 11. Bxc5 bxc3 12. Bd6 cxb2+ 13. Kb1 Qa5 14. Nd4 Qa4 15. Be2 h5 16. Qh4 g5 17. Qxg5 Nxd4 18. Bd3 Nb5 19. Bxb5+ axb5 20. Rd3 Qxa2# 0-1

[Event "EYCC 2017"]
[Site "Mamaia"]
[Date "2017.09.06"]
[Round "2"]
[White "Mekhane, Adam"]
[Black "Milanovic, Marko"]
[Result "0-1"]
[ECO "C99"]
[WhiteElo "1974"]
[BlackElo "1594"]
[Annotator "NA"]
[PlyCount "118"]
[EventDate "2017.??.??"]
[EventType "swiss"]
[EventCountry "ROU"]
[SourceTitle "playchess.com"]
[Source "ChessBase"]
[SourceQuality "1"]
[TimeControl "40/5400+30:1800+30"]

1. e4 {[%emt 0:00:02]} e5 {[%emt 0:00:10]} 2. Nf3 {[%emt 0:00:04]} Nc6 {[%emt 0:00:06]} 3. Bb5 {[%emt 0:00:15]} a6 {[%emt 0:00:17]} 4. Ba4 {[%emt 0:00:04]} Nf6 {[%emt 0:00:22]} 5. O-O {[%emt 0:00:56]} Be7 {[%emt 0:00:31]} 6. Re1 {[%emt 0:00:09]} b5 {[%emt 0:00:41]} 7. Bb3 {[%emt 0:00:06]} O-O {[%emt 0:00:46]} 8. c3 {[%emt 0:00:18]} d6 {[%emt 0:00:51]} 9. h3 {[%emt 0:00:32]} Na5 {[%emt 0:01:31]} 10. Bc2 {[%emt 0:00:07]} c5 {[%emt 0:00:39]} 11. d4 {[%emt 0:00:15]} Qc7 {[%emt 0:00:26]} 12. Nbd2 {[%emt 0:00:48]} cxd4 {[%emt 0:01:35]} 13. cxd4 {[%emt 0:00:06]} Nc6 {[%emt 0:00:56]} 14. d5 {[%emt 0:01:57]} Nb4 {[%emt 0:03:10]} 15. Bb1 {[%emt 0:00:22]} a5 {[%emt 0:01:34]} 16. Nf1 {[%emt 0:08:24]} Bd7 {[%emt 0:06:05]} 17. a3 {[%emt 0:02:47]} Na6 {[%emt 0:00:31]} 18. Ng3 {[%emt 0:03:18]} Nc5 {[%emt 0:02:58]} 19. Be3 {[%emt 0:07:38]} Rfc8 {[%emt 0:10:26]} 20. Bxc5 {[%emt 0:04:20]} Qxc5 {[%emt 0:00:32]} 21. Qd2 {[%emt 0:06:17]} Qb6 {[%emt 0:06:55]} 22. Bd3 {[%emt 0:09:36]} Rc7 {[%emt 0:07:02]} 23. h4 {[%emt 0:04:30]} Rac8 {[%emt 0:09:43]} 24. h5 {[%emt 0:00:53]} Bg4 {[%emt 0:07:43]} 25. h6 {[%emt 0:08:30]} Bxf3 {[%emt 0:03:13]} 26. gxf3 {[%emt 0:00:32]} g6 {[%emt 0:00:23]} 27. f4 {[%emt 0:04:39]} Ng4 {[%emt 0:06:06]} 28. Rad1 {[%emt 0:06:36]} Bf8 {[%emt 0:07:27]} 29. Qe2 {[%emt 0:03:28]} Nf6 {[%emt 0:02:49]} 30. fxe5 {[%emt 0:02:06]} dxe5 {[%emt 0:00:11]} 31. Qd2 {[%emt 0:07:33]} Ng4 {[%emt 0:02:22]} 32. Qe2 {[%emt 0:01:22]} Nxf2 {[%emt 0:02:41]} 33. Kg2 {[%emt 0:01:44]} Nxd1 {[%emt 0:00:42]} 34. Rxd1 {[%emt 0:00:27]} Rc1 {[%emt 0:00:59]} 35. Qe1 {[%emt 0:01:50]} Bxh6 {[%emt 0:01:03]} 36. Ne2 {[%emt 0:00:28]} Rxd1 {[%emt 0:00:21]} 37. Qxd1 {[%emt 0:00:01]} Qe3 {[%emt 0:00:29]} 38. d6 {[%emt 0:00:19]} Rd8 {[%emt 0:00:29]} 39. Bxb5 {[%emt 0:05:32]} Qxe4+ {[%emt 0:00:13]} 40. Kg3 {[%emt 0:00:00]} Qe3+ {[%emt 0:01:22]} 41. Kg2 {[%emt 0:01:21]} Qe4+ {[%emt 0:00:57]} 42. Kg3 {[%emt 0:00:16]} Bf4+ {[%emt 0:00:35]} 43. Nxf4 {[%emt 0:04:06]} exf4+ {[%emt 0:00:20]} 44. Kf2 {[%emt 0:02:04]} Qe3+ {[%emt 0:00:08]} 45. Kf1 {[%emt 0:00:31]} f3 {[%emt 0:00:23]} 46. d7 {[%emt 0:00:47]} f2 {[%emt 0:01:24]} 47. Qc2 {[%emt 0:07:50]} Qe1+ {[%emt 0:00:44]} 48. Kg2 {[%emt 0:00:02]} Qg1+ {[%emt 0:00:22]} 49. Kf3 {[%emt 0:00:02]} f1=Q+ {[%emt 0:00:24]} 50. Bxf1 {[%emt 0:00:05]} Qxf1+ 51. Ke3 {[%emt 0:00:27]} Qe1+ {[%emt 0:00:25]} 52. Kf3 {[%emt 0:00:22]} Qe5 {[%emt 0:00:22]} 53. Qc6 {[%emt 0:01:51]} Qf5+ {[%emt 0:00:19]} 54. Kg2 {[%emt 0:00:12]} Qxd7 55. Qb6 {[%emt 0:00:47]} Qd5+ {[%emt 0:00:25]} 56. Kh3 {[%emt 0:00:14]} Qf3+ {[%emt 0:00:07]} 57. Kh4 {[%emt 0:00:38]} g5+ {[%emt 0:00:12]} 58. Kxg5 {[%emt 0:00:19]} Rd5+ {[%emt 0:00:04]} 59. Kh6 {[%emt 0:00:23]} Qh5# {[%emt 0:00:04]} 0-1